bitfinex-derivatives/quotes_SOLF0:USTF0_20250703
["timestamp","ask_amount","ask_price","bid_price","bid_amount"]
[1751508608666,6.5336,152.99,152.97,0.04449242]
[1751508609768,3.75787622,153.02,152.97,0.04449242]
[1751508609769,6.534,152.98,152.97,0.04449242]
[1751508609970,10.29187622,152.98,152.97,0.04449242]
[1751508617069,6.534,152.98,152.97,0.04449242]
[1751508617373,6.5338,152.99,152.97,0.04449242]
[1751508618076,6.534,152.98,152.97,0.04449242]
[1751508624075,10.29187622,152.98,152.97,0.04449242]
[1751508624672,6.5357,152.95,152.92,51.08772012]
[1751508625268,6.5358,152.94,152.92,51.08772012]
[1751508627080,6.5358,152.94,152.92,44.98]
[1751508629676,6.5362,152.93,152.92,44.98]
[1751508630278,3.75787622,152.94,152.9,6.10772012]
[1751508630575,0.04188605,152.95,152.9,6.10772012]
[1751508630576,3.75787622,152.92,152.9,6.10772012]
[1751508631176,6.537,152.91,152.89,6.10772012]
[1751508631380,6.537,152.91,152.88,6.10772012]
[1751508631572,3.75787622,152.94,152.88,6.10772012]
[1751508631779,3.75787622,152.94,152.89,6.10772012]
[1751508631980,0.0464274,152.91,152.89,6.10772012]
[1751508632382,6.5359,152.94,152.9,6.5372]
[1751508633184,6.57827482,152.94,152.9,6.5372]
[1751508634086,6.5362,152.93,152.9,6.5372]
[1751508634283,0.04237482,152.94,152.89,16.40329634]
[1751508634886,6.5364,152.93,152.89,16.40329634]
[1751508637291,6.5364,152.93,152.89,10.29557622]
[1751508638694,6.5366,152.92,152.89,10.29557622]
[1751508641003,6.5363,152.93,152.89,10.29557622]
[1751508641301,6.5363,152.93,152.9,6.5373]
[1751508641599,6.5363,152.93,152.89,3.75787622]
[1751508641800,6.5363,152.93,152.89,10.29547622]
[1751508642201,6.5363,152.93,152.89,16.40319634]
[1751508642704,6.5363,152.93,152.89,9.86559634]
[1751508643399,6.5363,152.93,152.89,16.40319634]
[1751508647706,6.5366,152.92,152.89,12.64532012]
[1751508648312,6.5366,152.92,152.89,6.10772012]
[1751508650411,6.5366,152.92,152.88,10.29607622]
[1751508650611,6.537,152.91,152.89,6.10319057]
[1751508652111,6.537,152.91,152.88,16.39926679]
[1751508652316,6.537,152.91,152.88,9.86106679]
[1751508652512,3.75787622,152.92,152.87,53.24489057]
[1751508652711,3.75787622,152.92,152.87,59.78339057]
[1751508653212,6.5373,152.91,152.88,6.10319057]
[1751508657909,0.04237482,152.94,152.88,6.10319057]
[1751508658115,0.04237482,152.94,152.89,9.86106679]
[1751508658814,0.04237482,152.94,152.91,6.10319057]
[1751508659014,0.04237482,152.94,152.91,12.64009057]
[1751508660418,6.57817482,152.94,152.91,12.64009057]
[1751508664621,6.57817482,152.94,152.91,6.10319057]
[1751508665220,6.5362,152.93,152.91,6.10319057]
[1751508666521,0.04237482,152.94,152.9,6.10319057]
[1751508667021,0.04237482,152.94,152.91,6.10319057]
[1751508667222,6.57827482,152.94,152.91,6.10319057]
[1751508668520,6.5362,152.93,152.91,6.10319057]
[1751508670121,6.57827482,152.94,152.91,6.10319057]
[1751508671024,6.57827482,152.94,152.91,12.63999057]
[1751508671221,6.57827482,152.94,152.91,6.10319057]
[1751508671421,6.5362,152.93,152.91,6.10319057]
[1751508673424,8.98580586,152.94,152.91,6.10319057]
[1751508675229,6.57827482,152.94,152.91,15.04772161]
[1751508675426,8.98580586,152.94,152.91,15.04772161]
[1751508675720,2.44990586,152.94,152.91,15.04772161]
[1751508675925,0.04237482,152.94,152.91,8.51072161]
[1751508676629,6.57877482,152.94,152.91,8.51072161]
[1751508677019,8.98630586,152.94,152.91,8.51072161]
[1751508677221,0.04237482,152.94,152.91,8.51072161]
[1751508677418,0.04237482,152.94,152.93,2.40753104]
[1751508677723,10.4636047,152.99,152.95,6.5355]
[1751508677925,6.33683574,152.99,152.95,47.32753104]
[1751508678125,6.852,153.03,152.98,2.40753104]
[1751508678328,2.40753104,153.02,152.98,2.40753104]
[1751508678627,6.5338,153.0,152.98,2.40753104]
[1751508679131,6.5338,153.0,152.98,2.45116396]
[1751508679827,6.5338,153.0,152.98,0.04363292]
[1751508680231,6.5333,153.01,152.98,0.04363292]
[1751508680428,10.61002503,153.03,152.98,0.04363292]
[1751508680826,6.5341,152.99,152.98,0.04363292]
[1751508681023,10.61002503,153.03,152.98,0.04363292]
[1751508681433,6.5339,153.0,152.98,0.04363292]
[1751508682130,6.5341,152.99,152.98,0.04363292]
[1751508688026,6.852,153.03,152.98,0.04363292]
[1751508688232,3.75802503,153.03,152.98,0.04363292]
[1751508688832,3.75802503,153.05,152.98,3.80165795]
[1751508689534,6.5331,153.02,152.98,10.33595795]
[1751508693234,6.5332,153.01,152.98,10.33595795]
[1751508695437,3.75802503,153.04,152.98,3.80165795]
[1751508696639,6.5331,153.02,152.98,10.33615795]
[1751508698036,6.5331,153.02,152.99,6.534]
[1751508698234,6.5331,153.02,152.98,3.80165795]
[1751508698235,6.6381,153.07,152.98,3.80165795]
[1751508698539,10.39612503,153.07,153.0,3.75802503]
[1751508698740,10.39612503,153.07,153.0,48.65802503]
[1751508699038,6.5322,153.04,153.0,55.19142503]
[1751508699634,6.5322,153.04,153.0,55.23306981]
[1751508700541,10.39612503,153.07,153.0,55.23306981]
[1751508700942,6.5322,153.04,153.0,55.23306981]
[1751508702040,8.93651319,153.04,153.01,2.40431319]
[1751508702434,8.93651319,153.04,153.01,8.93751319]
[1751508702940,2.40431319,153.05,153.02,2.40431319]
[1751508704538,6.532,153.04,153.02,2.40431319]
[1751508705040,6.532,153.04,153.0,51.47504478]
[1751508705041,2.40431319,153.05,153.01,2.40431319]
[1751508705241,8.93661319,153.04,153.01,2.40431319]
[1751508707242,8.93661319,153.04,153.01,8.93751319]
[1751508707442,8.93601319,153.05,153.02,2.40431319]
[1751508707742,6.5317,153.05,153.02,2.40431319]
[1751508708239,6.5317,153.05,153.02,2.44859144]
[1751508709243,6.532,153.04,153.02,2.44859144]
[1751508710535,6.532,153.04,153.02,0.04427825]
[1751508713544,6.532,153.04,153.02,2.44859144]
[1751508715446,6.532,153.04,153.02,0.04427825]
[1751508715744,6.532,153.04,153.02,2.44859144]
[1751508716547,6.5317,153.05,153.02,2.44859144]
[1751508717548,6.5319,153.04,153.02,2.44859144]
[1751508722648,2.40431319,153.04,153.02,0.04427825]
[1751508723347,8.93671319,153.03,153.02,0.04427825]
[1751508727853,6.534,153.0,152.98,6.10217169]
[1751508728053,2.40431319,153.01,152.98,6.10217169]
[1751508728254,2.40431319,153.01,152.97,53.38648488]
[1751508728554,2.40431319,153.01,152.97,8.50648488]
[1751508729154,2.40431319,153.0,152.97,6.10217169]
[1751508729449,2.40431319,153.0,152.96,53.38648488]
[1751508729754,2.40431319,152.99,152.96,50.98217169]
[1751508730155,6.5348,152.98,152.96,50.98217169]
[1751508730349,2.40431319,152.97,152.96,44.88]
[1751508730753,8.93921319,152.97,152.96,44.88]
[1751508730957,2.40431319,152.97,152.95,6.10217169]
[1751508731350,6.5357,152.96,152.94,6.10217169]
[1751508731852,6.5357,152.96,152.93,47.28431319]
[1751508731853,2.40431319,152.95,152.93,50.98217169]
[1751508732053,2.40431319,152.95,152.93,6.10217169]
[1751508732855,8.94041319,152.95,152.93,6.10217169]
[1751508733554,8.94041319,152.95,152.92,8.50648488]
[1751508733755,6.5361,152.95,152.92,6.10217169]
[1751508734858,6.5361,152.95,152.92,12.63917169]
[1751508736462,6.5361,152.95,152.92,6.10217169]
[1751508737858,6.5361,152.95,152.92,12.63917169]
[1751508738160,6.58533055,152.96,152.92,16.39623423]
[1751508738360,6.58533055,152.96,152.92,10.29836047]
[1751508738560,6.58533055,152.96,152.92,16.39623423]
[1751508738765,6.5359,152.95,152.92,16.39623423]
[1751508739062,6.5359,152.95,152.92,9.85923423]
[1751508739470,0.04983055,152.96,152.92,9.85923423]
[1751508739762,3.76136047,152.93,152.9,6.09787376]
[1751508740864,6.5375,152.91,152.9,6.09787376]
[1751508742664,6.5375,152.91,152.9,6.09117197]
[1751508742865,6.5375,152.91,152.89,6.09117197]
[1751508743566,6.5379,152.9,152.89,6.09117197]
[1751508744062,6.5379,152.9,152.88,44.88]
[1751508745171,6.5377,152.91,152.88,51.4187]
[1751508746169,0.04356245,152.92,152.89,3.76136047]
[1751508746663,0.04356245,152.92,152.89,10.29936047]
[1751508747966,0.04356245,152.92,152.9,3.28110675]
[1751508748166,0.04356245,152.92,152.91,3.28110675]
[1751508750071,0.04356245,152.92,152.89,10.29936047]
[1751508750270,0.04356245,152.92,152.88,44.88]
[1751508750467,3.80492292,152.92,152.88,44.88]
[1751508750765,6.5385,152.89,152.87,44.88]
[1751508752573,6.5385,152.89,152.86,6.5394]
[1751508752875,6.5388,152.88,152.86,44.88]
[1751508753175,3.76136047,152.9,152.86,44.88]
[1751508753672,3.80329341,152.9,152.86,44.88]
[1751508753874,6.5392,152.88,152.86,44.88]
[1751508754071,3.80329341,152.9,152.86,44.88]
[1751508754973,3.80329341,152.9,152.87,3.27396742]
[1751508755169,6.5383,152.89,152.88,3.27396742]
[1751508758579,6.5388,152.88,152.86,44.88]
[1751508758780,6.5388,152.88,152.87,3.27320293]
[1751508761184,10.30016047,152.88,152.87,3.27320293]
[1751508761678,10.30016047,152.88,152.87,2.93e-06]
[1751508761878,10.30016047,152.88,152.82,47.0667]
[1751508761879,6.5404,152.85,152.82,47.0667]
[1751508762282,3.76136047,152.88,152.82,47.0667]
[1751508762482,6.5405,152.85,152.82,47.0667]
[1751508763084,6.58712809,152.85,152.82,47.0667]
[1751508764283,6.58712809,152.85,152.82,53.6079]
[1751508766283,6.58712809,152.85,152.82,47.0667]
[1751508768084,6.58712809,152.85,152.82,53.6079]
[1751508768386,6.58672809,152.85,152.82,53.6079]
[1751508770387,6.58672809,152.85,152.82,47.0667]
[1751508772085,6.58672809,152.85,152.82,53.6081]
[1751508774781,6.58672809,152.85,152.83,6.5409]
[1751508775190,6.58672809,152.85,152.82,47.0667]
[1751508775389,6.58672809,152.85,152.82,53.15787197]
[1751508775589,6.58672809,152.85,152.82,59.69897197]
[1751508778891,0.04662809,152.85,152.83,6.5408]
[1751508782191,0.04662809,152.85,152.84,6.5405]
[1751508783793,0.04662809,152.85,152.84,8.95007386]
[1751508784994,0.04662809,152.85,152.84,6.5405]
[1751508785195,0.04662809,152.85,152.84,8.95007386]
[1751508786596,0.04662809,152.85,152.84,2.40957386]
[1751508790498,0.04662809,152.85,152.84,8.95007386]
[1751508790693,47.1899,152.95,152.84,199.58769598]
[1751508790895,6.5378,152.91,152.88,8.94807386]
[1751508791092,2.40957386,152.92,152.88,2.40957386]
[1751508791495,6.5383,152.9,152.88,2.40957386]
[1751508791800,2.40957386,152.95,152.89,242.47630493]
[1751508791995,6.5371,152.92,152.91,2.40957386]
[1751508792200,2.2292,152.98,152.9,2.40957386]
[1751508792401,2.40957386,152.93,152.9,2.40957386]
[1751508792798,2.40957386,152.93,152.92,0.04342688]
[1751508792799,8.94627386,152.93,152.92,0.04342688]
[1751508793402,8.94627386,152.93,152.92,2.688e-05]
[1751508793899,10.30116071,152.93,152.92,2.688e-05]
[1751508795497,6.5367,152.93,152.92,2.688e-05]
[1751508795701,6.58009173,152.94,152.92,2.688e-05]
[1751508798505,6.58009173,152.94,152.92,6.53712688]
[1751508798807,6.58009173,152.94,152.92,2.688e-05]
[1751508802508,0.04369173,152.94,152.92,6.53702688]
[1751508803007,0.04369173,152.94,152.92,51.41702688]
[1751508803806,0.04369173,152.94,152.92,44.88002688]
[1751508804710,6.5367,152.93,152.92,44.88002688]
[1751508807410,6.5367,152.93,152.92,2.688e-05]
[1751508808205,3.80815244,152.94,152.85,50.96673107]
[1751508808515,3.76446071,152.9,152.85,57.50653107]
[1751508808811,6.5392,152.88,152.85,57.50653107]
[1751508809809,6.58193808,152.88,152.85,57.50653107]
[1751508812815,3.80719879,152.88,152.85,44.86]
[1751508813815,6.5397,152.86,152.85,44.86]
[1751508815610,6.5402,152.85,152.83,6.10673107]
[1751508815811,6.5402,152.85,152.82,53.5427]
[1751508815812,6.5402,152.85,152.82,59.64943107]
[1751508816717,6.5406,152.84,152.82,50.96673107]
[1751508818618,6.58219544,152.85,152.82,57.50803107]
[1751508824021,6.58219544,152.85,152.82,50.96673107]
[1751508825424,6.58219544,152.85,152.82,57.50803107]
[1751508827422,0.04189544,152.85,152.82,50.96673107]
[1751508827813,0.04189544,152.85,152.82,44.86]
[1751508828723,6.5409,152.83,152.82,44.86]
[1751508833331,6.5406,152.84,152.82,44.86]
[1751508843730,6.5409,152.83,152.82,44.86]
[1751508843935,0.04189544,152.85,152.82,44.86]
[1751508844539,6.5407,152.84,152.82,44.86]
[1751508844839,0.04189544,152.85,152.82,48.62446071]
[1751508845438,0.04189544,152.85,152.82,51.4012]
[1751508845439,6.58219544,152.85,152.82,51.4012]
[1751508847338,6.58219544,152.85,152.82,57.49667084]
[1751508851241,6.58219544,152.85,152.83,6.09547084]
[1751508851541,0.04189544,152.85,152.83,6.09547084]
[1751508851734,0.04189544,152.85,152.84,2.40967186]
[1751508852342,0.04189544,152.85,152.84,8.5051427]
[1751508852539,0.04189544,152.85,152.84,6.09547084]
[1751508853742,0.04189544,152.85,152.84,12.63597084]
[1751508857244,0.04189544,152.85,152.84,6.09547084]
[1751508859541,6.58199544,152.85,152.84,6.09547084]
[1751508859744,8.9916673,152.85,152.84,6.09547084]
[1751508860247,6.5405,152.84,152.83,8.07812212]
[1751508863548,6.5409,152.83,152.82,8.07812212]
[1751508866048,6.5409,152.83,152.81,10.48779398]
[1751508869355,6.5407,152.84,152.81,10.48779398]
[1751508869553,6.5407,152.84,152.83,6.12773302]
[1751508872060,6.5407,152.84,152.83,8.53740488]
[1751508881267,6.5407,152.84,152.83,2.40967186]
[1751508882865,0.04189544,152.85,152.82,8.07812212]
[1751508883066,72.7491161,152.91,152.84,10.48779398]
[1751508883269,6.56489833,152.9,152.86,8.53675686]
[1751508883470,6.5395,152.87,152.86,8.53675686]
[1751508883670,10.69472647,152.87,152.86,8.53675686]
[1751508884264,6.5395,152.87,152.86,8.53675686]
[1751508884471,10.69432647,152.88,152.86,2.40967186]
[1751508884770,4.15522647,152.89,152.86,2.40967186]
[1751508885068,4.15522647,152.88,152.87,2.40967186]
[1751508885261,4.15522647,152.9,152.87,2.40967186]
[1751508885465,72.7491161,152.91,152.87,2.40967186]
[1751508885466,6.539,152.88,152.87,2.40967186]
[1751508886372,6.5392,152.87,152.86,2.40967186]
[1751508891173,6.539,152.88,152.86,2.40967186]
[1751508891672,70.33944424,152.91,152.87,8.53675686]
[1751508891873,70.33944424,152.91,152.89,2.40967186]
[1751508892769,2.40967186,152.95,152.9,2.40967186]
[1751508892975,2.40967186,152.95,152.92,2.40967186]
[1751508893174,6.537,152.93,152.92,2.40967186]
[1751508893572,6.90067186,152.97,152.92,2.40967186]
[1751508893875,2.40967186,152.96,152.93,2.40967186]
[1751508894370,6.5362,152.94,152.92,2.40967186]
[1751508895673,2.40967186,152.96,152.92,2.40967186]
[1751508895874,4.491,152.97,152.91,3.81018142]
[1751508896674,3.76106442,152.96,152.91,0.049117]
[1751508897577,6.5371,152.92,152.91,0.049117]
[1751508914695,10.29816442,152.92,152.91,1.7e-05]
[1751508915896,8.94608578,152.92,152.91,1.7e-05]
[1751508928604,6.5397,152.86,152.85,44.8]
[1751508930006,6.5401,152.85,152.84,6.127085]
[1751508930505,2.40898578,152.86,152.83,6.127085]
[1751508931000,6.5408,152.84,152.82,10.90347078]
[1751508932406,6.5402,152.85,152.83,2.40898578]
[1751508943615,6.5406,152.84,152.82,8.494485]
[1751508943914,6.5406,152.84,152.83,2.40898578]
[1751508944517,6.5406,152.84,152.82,10.90347078]
[1751508945417,6.5406,152.84,152.83,2.40898578]
[1751508946516,6.5406,152.84,152.82,4.77638578]
[1751508953016,6.5409,152.83,152.82,2.3674]
[1751508953220,2.40898578,152.84,152.81,4.5587]
[1751508953416,2.40898578,152.85,152.81,6.96768578]
[1751508953718,6.5412,152.83,152.81,6.96768578]
[1751508953920,6.5412,152.83,152.81,13.09477078]
[1751508957117,0.04342061,152.85,152.82,2.40898578]
[1751508957421,0.04342061,152.85,152.83,2.40898578]
[1751508958021,6.58382061,152.85,152.84,2.40898578]
[1751508958422,0.04342061,152.85,152.84,8.53607078]
[1751508958724,6.5391,152.88,152.85,6.5401]
[1751508958922,6.5391,152.88,152.86,2.40898578]
[1751508960623,6.5391,152.88,152.87,2.40898578]
[1751508962424,6.5385,152.89,152.86,8.94858578]
[1751508962724,4.07472302,152.92,152.88,2.40898578]
[1751508962926,4.07472302,152.92,152.91,2.40898578]
[1751508963320,6.537,152.93,152.91,2.40898578]
[1751508964516,2.40898578,152.95,152.92,2.40898578]
[1751508964715,6.4837088,152.97,152.93,2.40898578]
[1751508964924,4.07472302,152.97,152.95,2.40898578]
[1751508965225,4.07472302,153.01,152.96,2.40898578]
[1751508965524,6.535,152.97,152.95,2.40898578]
[1751508965725,2.40898578,152.98,152.97,0.04778588]
[1751508966325,2.40898578,152.98,152.94,2.40898578]
[1751508966525,2.40898578,152.97,152.94,2.40898578]
[1751508966823,2.40898578,152.95,152.9,6.127085]
[1751508967129,6.34552302,153.0,152.94,0.04688639]
[1751508967322,6.5366,152.94,152.89,44.76]
[1751508967521,6.5366,152.94,152.9,6.5378]
[1751508968226,8.94558578,152.94,152.91,2.40898578]
[1751508969520,2.40898578,152.93,152.9,0.05009426]
[1751508969719,3.76267529,152.95,152.9,0.05009426]
[1751508970628,6.5375,152.92,152.9,0.05009426]
[1751508970831,3.76267529,152.95,152.9,0.05009426]
[1751508971527,6.5375,152.91,152.9,0.05009426]
[1751508982943,10.30017529,152.91,152.9,0.05009426]
[1751508983144,10.30017529,152.91,152.9,9.426e-05]
[1751508991849,8.94655651,152.91,152.9,9.426e-05]
[1751508993749,10.30243245,152.91,152.9,9.426e-05]
[1751509001661,6.5375,152.91,152.9,9.426e-05]
[1751509015671,0.04824794,152.92,152.9,6.09289079]
[1751509015872,0.04824794,152.92,152.91,2.40734419]
[1751509016965,0.04824794,152.92,152.9,8.50023498]
[1751509017371,0.04824794,152.92,152.9,6.09289079]
[1751509017669,0.04824794,152.92,152.9,9.426e-05]
[1751509018276,6.58574794,152.92,152.9,9.426e-05]
[1751509019170,6.5375,152.91,152.9,9.426e-05]
[1751509019380,8.94484419,152.91,152.9,9.426e-05]
[1751509019777,6.5375,152.91,152.9,9.426e-05]
[1751509034175,3.81203823,152.92,152.85,4.4859]
[1751509034374,3.76379029,152.89,152.85,4.4859]
[1751509035176,6.5396,152.86,152.85,4.4859]
[1751509035982,6.58435041,152.87,152.85,4.4859]
[1751509037983,0.04485041,152.87,152.85,4.4859]
[1751509038389,0.04485041,152.87,152.85,10.59538445]
[1751509038584,0.04485041,152.87,152.85,17.13518445]
[1751509038785,0.04485041,152.87,152.86,2.1522]
[1751509041887,0.04485041,152.87,152.86,4.56107096]
[1751509044694,6.58415041,152.87,152.85,55.33632532]
[1751509044889,6.58415041,152.87,152.86,2.40887096]
[1751509045496,6.58415041,152.87,152.85,57.74519628]
[1751509045689,0.04485041,152.87,152.85,57.74519628]
[1751509046393,0.04485041,152.87,152.85,64.28519628]
[1751509049094,0.04485041,152.87,152.86,6.11042532]
[1751509049991,0.04485041,152.87,152.86,6.11105219]
[1751509050793,0.04485041,152.87,152.86,15.05952315]
[1751509051695,0.04485041,152.87,152.86,8.51992315]
[1751509054996,0.04485041,152.87,152.86,6.11105219]
[1751509055196,6.58405041,152.87,152.86,6.11105219]
[1751509055491,6.58405041,152.87,152.85,51.63477096]
[1751509055492,2.45372137,152.87,152.85,44.74]
[1751509055692,2.40887096,152.86,152.85,44.74]
[1751509055893,6.5396,152.86,152.85,44.74]
[1751509056097,2.45372137,152.87,152.85,44.74]
[1751509056693,8.99322137,152.87,152.85,44.74]
[1751509058098,6.5396,152.86,152.85,44.74]
[1751509058394,2.40887096,152.86,152.83,6.11105219]
[1751509058596,8.94917096,152.85,152.83,6.11105219]
[1751509059998,6.5405,152.84,152.83,6.11105219]
[1751509060195,8.94937096,152.84,152.83,6.11105219]
[1751509060499,8.94937096,152.84,152.81,52.79812212]
[1751509060500,2.40887096,152.84,152.82,6.11105219]
[1751509060689,0.04485041,152.87,152.81,50.83105219]
[1751509060690,6.5414,152.82,152.81,50.83105219]
[1751509061094,6.5414,152.82,152.81,44.72]
[1751509062087,6.59026606,152.83,152.81,44.72]
[1751509063903,6.5415,152.82,152.8,6.11105219]
[1751509065599,6.5418,152.81,152.8,6.11105219]
[1751509065794,0.04906606,152.83,152.79,6.11105219]
[1751509065994,3.81642352,152.83,152.79,6.11105219]
[1751509066191,3.76735746,152.81,152.77,6.11105219]
[1751509066498,3.76735746,152.79,152.75,6.11105219]
[1751509066700,3.76735746,152.79,152.73,10.61685219]
[1751509067301,6.5439,152.77,152.73,10.61685219]
[1751509067502,0.04195037,152.78,152.73,6.11105219]
[1751509067801,6.5442,152.76,152.73,6.11105219]
[1751509068200,6.5442,152.76,152.72,57.39665219]
[1751509069102,0.04195037,152.78,152.72,48.50735746]
[1751509069302,0.04195037,152.78,152.74,9.87840965]
[1751509069901,0.04195037,152.78,152.75,6.5443]
[1751509070302,0.04195037,152.78,152.76,3.76735746]
[1751509070505,48.50735746,152.85,152.76,3.76735746]
[1751509070703,48.50735746,152.85,152.78,3.76735746]
[1751509071905,6.541,152.83,152.78,10.31035746]
[1751509072205,48.50735746,152.85,152.78,10.31035746]
[1751509073105,6.541,152.83,152.78,10.31035746]
[1751509073404,48.50735746,152.85,152.8,0.04129849]
[1751509074208,6.5417,152.82,152.8,0.04129849]
[1751509076608,6.5418,152.81,152.8,0.04129849]
[1751509086818,6.5415,152.82,152.8,0.04129849]
[1751509087025,48.50735746,152.85,152.8,0.04129849]
[1751509088725,6.5414,152.82,152.8,0.04129849]
[1751509090722,6.5411,152.83,152.8,6.58349849]
[1751509090923,3.76735746,152.85,152.8,6.58349849]
[1751509091527,6.5413,152.83,152.8,6.58349849]
[1751509092028,6.5414,152.82,152.8,6.58349849]
[1751509093328,6.5414,152.82,152.8,0.04129849]
[1751509094728,6.5411,152.83,152.8,6.58349849]
[1751509096732,6.5414,152.82,152.8,0.04129849]
[1751509103039,3.76735746,152.87,152.8,3.80865595]
[1751509103237,3.76735746,152.87,152.8,12.14760814]
[1751509103530,3.76735746,152.87,152.81,6.11105219]
[1751509103736,6.5408,152.84,152.82,2.41022013]
[1751509104138,2.41022013,152.85,152.81,8.52127232]
[1751509104931,6.5412,152.83,152.81,8.52127232]
[1751509105937,6.5412,152.83,152.81,6.11105219]
[1751509108340,6.5413,152.82,152.81,6.11105219]
[1751509108541,3.87790179,152.88,152.8,0.04293848]
[1751509108542,3.76650072,152.84,152.8,0.04293848]
[1751509109244,6.5418,152.81,152.8,0.04293848]
[1751509110837,3.76650072,152.82,152.76,6.11105219]
[1751509111046,3.76650072,152.77,152.72,6.11105219]
[1751509111340,6.5442,152.76,152.73,6.11105219]
[1751509111542,6.5442,152.76,152.72,6.11105219]
[1751509111835,3.76650072,152.77,152.71,6.11105219]
[1751509112043,3.76650072,152.75,152.7,6.11105219]
[1751509112435,6.5454,152.73,152.69,50.85105219]
[1751509112741,3.76650072,152.75,152.69,44.74]
[1751509112943,0.04683967,152.76,152.69,44.74]
[1751509112944,3.76650072,152.73,152.69,44.74]
[1751509113941,6.5459,152.72,152.69,44.74]
[1751509115041,0.04852872,152.72,152.69,44.74]
[1751509115545,0.04852872,152.72,152.69,51.2866]
[1751509115743,0.04852872,152.72,152.69,44.74]
[1751509116344,0.04852872,152.72,152.7,6.5462]
[1751509116539,0.04852872,152.72,152.69,44.74]
[1751509116739,0.04852872,152.72,152.7,6.5464]
[1751509119436,0.04852872,152.72,152.71,6.5461]
[1751509121443,0.04852872,152.72,152.7,6.5463]
[1751509122646,0.04852872,152.72,152.71,6.546]
[1751509122941,0.04852872,152.72,152.69,50.85105219]
[1751509123347,0.04852872,152.72,152.7,6.5463]
[1751509123951,0.04852872,152.72,152.69,44.74]
[1751509124249,0.04852872,152.72,152.69,51.2868]
[1751509125444,6.5461,152.71,152.69,44.74]
[1751509125845,0.04852872,152.72,152.69,44.74]
[1751509126650,6.546,152.71,152.69,44.74]
[1751509130152,6.59422872,152.72,152.69,44.74]
[1751509131252,6.5461,152.71,152.69,44.74]
[1751509134555,6.59432872,152.72,152.69,44.74]
[1751509135356,6.5461,152.71,152.69,44.74]
[1751509138158,6.59422872,152.72,152.69,51.2867]
[1751509141555,0.04852872,152.72,152.7,6.5465]
[1751509141752,0.04852872,152.72,152.71,3.76650072]
[1751509142358,0.04852872,152.72,152.71,10.31250072]
[1751509142661,0.04852872,152.72,152.71,6.546]
[1751509145861,0.04852872,152.72,152.69,44.74]
[1751509147963,0.04852872,152.72,152.7,6.5463]
[1751509148360,0.04852872,152.72,152.69,51.2867]
[1751509149663,6.59422872,152.72,152.69,51.2867]
[1751509153266,6.59422872,152.72,152.69,57.37015699]
[1751509155369,6.59422872,152.72,152.7,6.08345699]
[1751509155562,3.76650072,152.71,152.68,5.699e-05]
[1751509155768,3.76650072,152.69,152.63,8.07812212]
[1751509156270,6.548,152.67,152.63,14.62722212]
[1751509156568,6.548,152.67,152.63,8.07812212]
[1751509156764,10.31450072,152.67,152.63,8.07812212]
[1751509156956,10.35996381,152.67,152.63,8.07812212]
[1751509157157,10.35996381,152.67,152.64,6.5489]
[1751509158156,6.5482,152.66,152.63,14.62742212]
[1751509158367,6.5482,152.66,152.63,6.5493]
[1751509160267,3.81196381,152.67,152.62,52.93812212]
[1751509160569,3.81196381,152.67,152.62,44.86]
[1751509161164,6.5489,152.65,152.62,51.4096]
[1751509164272,3.76650072,152.66,152.62,44.86]
[1751509164769,6.549,152.65,152.62,44.86]
[1751509165567,6.5492,152.64,152.62,44.86]
[1751509166271,6.5495,152.63,152.62,44.86]
[1751509166768,3.76650072,152.64,152.58,44.88]
[1751509166965,3.76650072,152.61,152.58,44.88]
[1751509167672,3.80772351,152.61,152.58,44.88]
[1751509168574,10.35822351,152.61,152.58,51.4315]
[1751509169676,6.59172279,152.61,152.58,51.4315]
[1751509169876,6.5508,152.6,152.58,44.88]
[1751509170476,6.59172279,152.61,152.58,51.4316]
[1751509171677,10.35822351,152.61,152.58,51.4316]
[1751509172371,6.5508,152.6,152.58,44.88]
[1751509172681,3.80772351,152.61,152.58,44.88]
[1751509173276,10.35832351,152.61,152.58,51.4316]
[1751509173578,3.80772351,152.61,152.58,44.88]
[1751509173779,6.5508,152.6,152.58,44.88]
[1751509177477,6.5507,152.6,152.58,44.88]
[1751509178778,10.31770072,152.59,152.58,44.88]
[1751509179878,6.552,152.57,152.55,6.6803]
[1751509180280,6.552,152.57,152.54,51.533]
[1751509180985,6.60084484,152.57,152.54,51.533]
[1751509181286,6.5525,152.56,152.54,51.533]
[1751509181585,0.04884484,152.57,152.54,44.98]
[1751509182588,6.5526,152.56,152.54,44.98]
[1751509185187,6.5529,152.55,152.54,44.98]